Cogmind - Beta 10.2 *** ADVENTURER MODE // 2021.11.09 @ 15:32:02 Player: DUMBBITCHINDYSTOPIA Result: Self-destructed Performance ------------- Evolutions (1) 500 Regions Visited (3) 600 Robots Destroyed (22) 110 Value Destroyed (465) 465 Prototype IDs (3) 60 Alien Tech Used (0) 0 Bonus (0) 0 TOTAL SCORE: 1735 Bonus ------- None Cogmind --------- Core Integrity 400/400 Matter 277/300 Energy 250/250 System Corruption 0% Temperature Cool (0) Movement Rolling (93) Location -9/Materials Parts ------- > --- POWER (2) -------- Ion Engine > --- PROPULSION (3) --- Wheel Compact Wheel Compact Wheel > --- UTILITY (2) ------ Improved Heat Sink Medium Storage Unit > --- WEAPON (2) ------- Mining Laser Hammer > --- INVENTORY (8) ---- Light Nuclear Core Grenade Launcher Rocket Launcher Peak State ------------ > --- POWER ------------ Light Nuclear Core > --- PROPULSION ------- Compact Wheel Compact Wheel > --- UTILITY ---------- Improved Heat Sink Medium Storage Unit > --- WEAPON ----------- Small Laser Small Laser > --- INVENTORY -------- Ion Engine Ion Engine Wheel Compact Wheel Compact Wheel Compact Wheel Grenade Launcher [Rating: 11] Favorites ----------- Power Ion Engine Engine Ion Engine Power Core Light Nuclear Core Propulsion Compact Wheel Wheel Compact Wheel Utility Medium Storage Unit Device Improved Heat Sink Storage Medium Storage Unit Processor Seismic Analyzer Weapon Small Laser Energy Gun Small Laser Launcher Rocket Launcher Special Weapon Mining Laser Impact Weapon Hammer Build | -11 -10 -10 -9 ------- Run | Scr Mat Min Mat Slots Evolved 2 | . . . 2 Power 1 | . . . 1 Propulsion 1 | . . . 1 Utility . | . . . . Weapon . | . . . . Parts Attached 29 | 7 11 10 1 Power 4 | 1 2 1 . Engine 3 | 1 1 1 . Core 1 | . 1 . . Reactor . | . . . . Propulsion 8 | 2 3 2 1 Treads . | . . . . Leg . | . . . . Wheel 8 | 2 3 2 1 Hover . | . . . . Flight . | . . . . Utility 5 | 2 2 1 . Device 2 | . 1 1 . Storage 2 | 1 1 . . Processor 1 | 1 . . . Hackware . | . . . . Protection . | . . . . Artifact . | . . . . Weapon 12 | 2 4 6 . Energy Gun 6 | 2 3 1 . Energy Cannon . | . . . . Ballistic Gun . | . . . . Ballistic Cannon . | . . . . Launcher 1 | . . 1 . Special Weapon 4 | . 1 3 . Impact Weapon 1 | . . 1 . Slashing Weapon . | . . . . Piercing Weapon . | . . . . Special Melee Weapon . | . . . . Unidentified Prototypes . | . . . . Parts Lost 9 | . 3 6 . Power 1 | . . 1 . Propulsion 2 | . . 2 . Utility 1 | . . 1 . Weapon 5 | . 3 2 . Highest Loss Streak 4 | . 1 4 . Average Slot Usage (%) 97 | . 97 97 88 Engine 13 | . 14 13 11 Wheel 28 | . 28 27 33 Device 9 | . 6 13 11 Storage 13 | . 14 14 11 Processor 4 | . 7 . . Energy Gun 18 | . 25 9 . Special Weapon 6 | . . 15 11 Impact Weapon 1 | . . 1 11 Naked Turns . | . . . . Heaviest Build 19 | 11 18 19 17 Greatest Support 42 | 32 32 32 42 Greatest Overweight (x) . | . . . . Average Overweight (x) . | . . . . Largest Inventory Capacity 8 | 6 8 8 8 Average Capacity 7 | 4 7 8 8 Most Carried 8 | 3 8 8 3 Average Carried 6 | 1 5 7 3 Final Capacity 8 | 6 8 8 8 Final Carried 8 | 2 8 4 3 Class Distribution -------------------- 63% | Mutant 36% | Scavenger-Mutant Dominant Class ---------------- Scavenger-Mutant | -10/Materials Mutant | -10/Mines Mutant | -9/Materials Resources | -11 -10 -10 -9 ----------- Run | Scr Mat Min Mat Matter Collected 470 | 212 158 100 . Remotely . | . . . . Salvage Created 573 | 111 344 118 . Parts 47 | 8 30 9 . Haulers Intercepted 1 | . 1 . . Recyclers Shooed . | . . . . Parts Field Recycled . | . . . . Retrieved Matter . | . . . . Parts Self-Destructed . | . . . . Prevented . | . . . . Kills | -11 -10 -10 -9 ------- Run | Scr Mat Min Mat Combat Hostiles Destroyed 14 | . 7 7 . Melee 2 | . . 2 . Guns 7 | . 7 . . Cannons 2 | . . 2 . AOE 3 | . . 3 . Classes Destroyed 7 | 2 5 . . Worker 1 | . 1 . . Tunneler 2 | 2 . . . Hauler 1 | . 1 . . Recycler 1 | 1 . . . Watcher 3 | . 3 . . Swarmer 6 | . 3 3 . Grunt 8 | . 4 4 . Best Kill Streak 4 | 2 4 3 . Combat Bots Only 3 | . 3 3 . Max Kills in Single Turn 2 | 2 1 2 . Gunslinging . | . . . . Exploded 2 | . . 2 . Melee 1 | . . 1 . Uniques/NPCs Destroyed . | . . . . Combat | -11 -10 -10 -9 -------- Run | Scr Mat Min Mat Damage Taken 546 | . 228 318 . Core 98 | . 58 40 . Absorbed by Shields . | . . . . Core Remaining (%) 80 | 100 . 60 . Volleys Fired 49 | 2 36 11 . Largest 2 | 2 2 2 . Hottest 200 | 80 105 200 . Shots Fired 81 | 4 63 14 . Gun 73 | 4 63 6 . Cannon . | . . . . Launcher 3 | . . 3 . Special 5 | . . 5 . Kinetic . | . . . . Thermal 78 | 4 63 11 . Explosive 3 | . . 3 . Electromagnetic . | . . . . Robot Hit Streak 13 | 2 13 8 . Robot Miss Streak 1 | 1 1 1 . Penetration Max . | . . . . Secondary Targets 3 | . 3 . . Max Gunslinging Chain 1 | . 1 . . Shots Hit Robots 77 | 3 47 27 . Core Hits 36 | 4 21 11 . Critical Hits . | . . . . Critical Kills . | . . . . Critical Parts Destroyed . | . . . . Melee Attacks 16 | . . 16 . Impact 16 | . . 16 . Slashing . | . . . . Piercing . | . . . . Sneak Attacks . | . . . . Combat Hostiles . | . . . . Follow-up Attacks . | . . . . Damage Inflicted 1251 | 45 523 683 . Guns 635 | 45 523 67 . Cannons . | . . . . Explosions 271 | . . 271 . Melee 273 | . . 273 . Ramming . | . . . . Kinetic . | . . . . Thermal 707 | 45 523 139 . Explosive 271 | . . 271 . Electromagnetic . | . . . . Impact 273 | . . 273 . Slashing . | . . . . Piercing . | . . . . Highest Corruption . | . . . . Average Corruption . | . . . . Corruption Purged . | . . . . Overload Shots . | . . . . Overflow Damage 12 | . . 12 . Projectiles . | . . . . Explosions . | . . . . Melee 12 | . . 12 . Knockbacks . | . . . . Impact . | . . . . Kinetic . | . . . . Secondary . | . . . . Self-Inflicted Damage 4 | . . 4 . Shots 1 | . . 1 . Rammed . | . . . . Targets Rammed . | . . . . Kicked . | . . . . Crushed . | . . . . Highest Temperature 320 | 18 320 15 . Average Temperature 91 | 12 105 7 . Received Heat Transfer 354 | . 132 222 . Effects 1 | . 1 . . Energy Bleed 1 | . 1 . . Siege Activations . | . . . . Robots Corrupted . | . . . . Combat Hostiles . | . . . . Parts Fried . | . . . . Impact Corruptions 1 | . . 1 . Robots Melted . | . . . . Combat Hostiles . | . . . . Parts Melted 2 | . 2 . . Heat Transferred 1584 | 100 1184 300 . Parts Sabotaged . | . . . . Parts Stolen . | . . . . Parts Stripped . | . . . . Power Chain Reactions . | . . . . Missiles Intercepted . | . . . . Alert | -11 -10 -10 -9 ------- Run | Scr Mat Min Mat Peak Influence 183 | 15 144 183 9 Initial 44 | . 8 44 9 Average 90 | 4 79 124 9 Maximum Alert Level . | . . . . Low Security (%) 100 | 100 100 100 100 Level 1 . | . . . . Level 2 . | . . . . Level 3 . | . . . . Level 4 . | . . . . Level 5 . | . . . . High Security . | . . . . Max Security . | . . . . Squads Dispatched . | . . . . Investigation . | . . . . Extermination . | . . . . Reinforcement . | . . . . Assault . | . . . . Garrison . | . . . . Intercept . | . . . . Construction Impeded . | . . . . Haulers Reinforced . | . . . . Stealth | -11 -10 -10 -9 --------- Run | Scr Mat Min Mat Distress Signals 1 | . . . 1 Communications Jammed . | . . . . Distress Signals . | . . . . Times Spotted 17 | . 10 7 . Peak Tracking Total 3 | . 2 3 . Tactical Retreats . | . . . . Traps | -11 -10 -10 -9 ------- Run | Scr Mat Min Mat Traps Triggered 2 | . 2 . . Indirectly . | . . . . Trap Hack Attempts . | . . . . Triggered . | . . . . Disarmed . | . . . . Reprogrammed . | . . . . Reused . | . . . . Traps Extracted . | . . . . Installed . | . . . . Triggered . | . . . . Machines | -11 -10 -10 -9 ---------- Run | Scr Mat Min Mat Machines Disabled 1 | . . 1 . Max in Single Turn 1 | . . 1 . Machines Sabotaged . | . . . . Garrisons Compromised . | . . . . Overloaded Fab Kills . | . . . . Fab Network Shutdowns . | . . . . Hacking | -11 -10 -10 -9 --------- Run | Scr Mat Min Mat Machines Accessed 9 | . 9 . . Terminals 7 | . 7 . . Fabricators . | . . . . Repair Stations . | . . . . Recycling Units 2 | . 2 . . Scanalyzers . | . . . . Garrison Access . | . . . . Total Hacks 30 | . 30 . . Successful 21 | . 21 . . Failed 9 | . 9 . . Catastrophic . | . . . . Database Lockouts . | . . . . Manual 10 | . 10 . . Terminals 23 | . 23 . . Fabricators . | . . . . Repair Stations . | . . . . Recycling Units 7 | . 7 . . Scanalyzers . | . . . . Garrison Access . | . . . . Terminal Hacks 10 | . 10 . . Robot Analysis 2 | . 2 . . Prototype ID Bank 2 | . 2 . . Level Access Points 1 | . 1 . . Terminal Index 1 | . 1 . . Alert Level 1 | . 1 . . Locate Traps 1 | . 1 . . Zone Layout 2 | . 2 . . Fabricator Hacks . | . . . . Repair Station Hacks . | . . . . Recycling Unit Hacks 4 | . 4 . . Process 2 | . 2 . . Report Inventory 2 | . 2 . . Scanalyzer . | . . . . Garrison Access Hacks . | . . . . Unauthorized Hacks 7 | . 7 . . Terminals 4 | . 4 . . Track 1 | . 1 . . Botnet 3 | . 3 . . Fabricators . | . . . . Repair Stations . | . . . . Recycling Units 3 | . 3 . . Monitor 1 | . 1 . . Recyclers 2 | . 2 . . Scanalyzers . | . . . . Garrison Access . | . . . . Data Cores Recovered . | . . . . Used . | . . . . Hacking Detections 8 | . 8 . . Full Trace Events . | . . . . Feedback Events . | . . . . Feedback Blocked . | . . . . Robot Schematics Acquired . | . . . . Robots Built . | . . . . Matter . | . . . . Time . | . . . . Total Robot Build Rating . | . . . . Part Schematics Acquired . | . . . . Parts Built . | . . . . Matter . | . . . . Time . | . . . . Total Part Build Rating . | . . . . Parts Repaired . | . . . . Time . | . . . . Parts Recycled . | . . . . Recycled Matter 43 | . 43 . . Retrieved Matter . | . . . . Retrieved Components . | . . . . Parts Scanalyzed . | . . . . Part Schematics Acquired . | . . . . Parts Damaged . | . . . . Bothacking | -11 -10 -10 -9 ------------ Run | Scr Mat Min Mat Used RIF Installer . | . . . . Robots Hacked . | . . . . Non-combat . | . . . . Combat . | . . . . Robot Hacks Applied . | . . . . Relay Couplers Released . | . . . . Robots Rewired . | . . . . Allies Hacked . | . . . . Hacks Repelled . | . . . . Allies | -11 -10 -10 -9 -------- Run | Scr Mat Min Mat Total Allies . | . . . . Largest Group . | . . . . Highest-Rated Group . | . . . . Highest-Rated Ally . | . . . . Total Orders . | . . . . Ally Attacks . | . . . . Total Damage . | . . . . Kills . | . . . . Allies Corrupted . | . . . . Allies Melted . | . . . . Intel | -11 -10 -10 -9 ------- Run | Scr Mat Min Mat Robot Analysis Total 2 | . 2 . . Derelict Logs Recovered . | . . . . Drone Launches . | . . . . Drone Recoveries . | . . . . Exploration | -11 -10 -10 -9 ------------- Run | Scr Mat Min Mat Turns Passed 1219 | 59 669 450 41 Spaces Moved 940 | 42 511 345 42 Core 2 | 2 . . . Treads . | . . . . Legs . | . . . . Wheels 938 | 40 511 345 42 Hover . | . . . . Flight . | . . . . Fastest Speed 50 | 50 100 100 93 Average Speed 99 | 97 100 100 93 Slowest Speed 100 | 100 100 100 93 Overloaded Moves . | . . . . Propulsion Burnouts . | . . . . Robots Hopped . | . . . . Cave-ins Triggered . | . . . . Exploration Rate (%) 35 | 4 73 57 9 Regions Visited 3 Branch Regions 1 Pre-discovered Areas . | . . . . Known Exits Taken 1 | . . 1 . Unknown Exits Taken 2 | 1 1 . . Scrap Searched 1 | . . 1 . Spaces Dug . | . . . . Terrain Destroyed 25 | . . 25 . Melee . | . . . . Projectile 1 | . . 1 . AOE 24 | . . 24 . Terrain Rammed . | . . . . Walls Destroyed . | . . . . Machines Disabled . | . . . . Actions | -11 -10 -10 -9 --------- Run | Scr Mat Min Mat Total 1101 | 53 605 400 43 Wait 45 | . 30 15 . Move 937 | 41 510 344 42 Hop . | . . . . Pick Up 19 | 3 13 3 . Fast Attach 7 | 6 1 . . Attach 12 | 1 4 6 1 Detach . | . . . . Swap 10 | . 6 4 . Drop 6 | . 5 1 . Fire 49 | 2 36 11 . Melee 16 | . . 16 . Ram . | . . . . Kick . | . . . . Crush . | . . . . Escape Stasis . | . . . . Rewire . | . . . . Trap . | . . . . Miscellaneous . | . . . . Route ------- -11/Scrapyard -10/Materials (discovered 4 exits: *Mat x3 / [*Min]) -10/Mines -9/Materials History --------- Turn | Location | Event 33 | -11/Scrapyard | Discovered new exit (range 16) 60 | -11/Scrapyard | Entered Materials 199 | -10/Materials | Identified exit to Materials 364 | -10/Materials | Discovered new exit (range 7) 493 | -10/Materials | Build established: Scavenger-Mutant 729 | -10/Materials | Entered Mines 799 | -10/Mines | Received a Rocket Launcher from a helpful Derelict 940 | -10/Mines | Build established: Mutant 941 | -10/Mines | Discovered exit to Materials (range 6) 1179 | -10/Mines | Entered Materials 1179 | -9/Materials | Evolved 2 slots: Power x1, Propulsion x1 1195 | -9/Materials | Lost 4 parts (1p1n1u1w) 1220 | -9/Materials | Self-destructed Last Messages --------------- 00941_ EXIT=FOUND: MATERIALS 00944_ K-01 Serf collects debris. 01134_ Imp. Heat Sink destroyed. 01137_ Destroyed Heat Sink. 01137_ G-34 Mercenary system corrupted by crushing effect. 01142_ G-34 Mercenary destroyed. 01152_ Sml. Laser destroyed. 01160_ Com. Wheel destroyed. 01164_ Ion Engine destroyed. 01164_ G-47 Trooper destroyed. 01167_ Acquired 35 matter. 01168_ Acquired 18 matter. 01169_ R-06 Scavenger collects Aluminum Leg. 01170_ Acquired 10 matter. 01172_ Acquired 7 matter. 01172_ R-06 Scavenger collects Aluminum Leg. PARAMETERS=POWER_1,PROPULSION_1 LOCATION=MATERIALS GOAL=ESCAPE 01205_ K-01 Serf collects debris. Map ----- +----------------------------------------------------+ | ?????????????????????????????????????????? | | ?????????????????????????????????????????? | | ?????????????????????????????????????????? | | ?????????????????????????????????????????? | | ????????#####+???????????????????????????? | | ????????? ???????????????????????????? | | ?????????? ??????????????????????????? | | ??????????? ??????????????????????????? | | ???????????# ??????????????????????????? | | ???????????# ??????????????????????????? | | ???????????# ??????????????????????????? | | ???????????# ###################???????? | | ???????????# #???????? | | ???????????# #???????? | | ???????????# #???????? | | ???????????## #####+###########???????? | | ????????????# #?# #??????????????? | | ???####?????# #?# #??????????????? | | ??? ????# #?# #??????????????? | | ?? ??# #?# #??????????????? | | ??? ?# #?# #??????????????? | | ??????# # #?# #??????????????? | | ???????# #?########??????????????? | | ?????### #???????????????????????? | | ??# #################???????? | | ??# @/ #?????? | | ??# # """" =#?????? | | ??# #??""" ????????? | | ??# u +????"?????????? | | ??? ####??????????????? | | ??? ############# #?????????????????? | | ??? ?????????????# #?????????????????? | | ??????????????????# #?????????????????? | | ??????????????????# #?????????????????? | | ??????????????????#+##+#?????????????????? | | ????????????????????? ?????????????????? | | ????????????????????? ?????????????????? | | ?????????????????????" "?????????????????? | | ?????????????????????" "?????????????????? | | ?????????????????????? ??????????????????? | | ?????????????????????? ??????????????????? | | ?????????????????????????????????????????? | | ?????????????????????????????????????????? | | ?????????????????????????????????????????? | | ?????????????????????????????????????????? | | ?????????????????????????????????????????? | | ?????????????????????????????????????????? | | ?????????????????????????????????????????? | | ?????????????????????????????????????????? | | ?????????????????????????????????????????? | +----------------------------------------------------+ Best States ------------- Heat Dissipation 42 Energy Generation 10 Energy Capacity 250 Matter Stores 300 Matter Capacity 300 Sight Range 16 Terrain Scan Density 60 Resistance: KI 20 Resistance: TH 20 Resistance: EX 20 Resistance: EM 20 Resistance: I 20 Resistance: S 20 Resistance: P 20 Evasion (%) 41 Offensive Hacking 10 Item Schematics ----------------- None Robot Schematics ------------------ None Fabricated ------------ Nothing Alien Tech Used ----------------- None Achievements -------------- None Challenges ------------ None Game ------ Seed MomentumMappingSpear Manual? 0 Play Time 00:13:51 Cumulative 35.7 hours Start 2021.06.19 @ 19:55:26 End 2021.11.09 @ 15:32:02 Sessions 1 Manual Loads 0 Difficulty Adventurer Special Mode None Game No. 46 Rogue 3 Adventurer 43 Explorer 0 Win Type - Total 0 Types 0/0/0/0/0/0/0/0/0 Lore% 36 Gallery% 44 Achievement% 38 Wizard Run 0 Options --------- ASCII 0 Keyboard 0 Movement Arrows Keybinds 0 Fullscreen 1 Font 16/SmallcapsGlow Map View 75x55 Tactical HUD 1 Map Filters NONE Filters NONE Steam 0 RUN: 31fd999a-3f8c-4a0b-bafc-be54b1ad358f